fUSD/lending_fUSD_20240214
["ID","MTS","AMOUNT","RATE_DAILY","PERIOD"]
[314040295,1707945038553,-3192.57118008,0.00028955,4]
[314040296,1707945038565,-1700.06344736,0.00029,15]
[314040297,1707945038575,-808.0,0.00029053,2]
[314040298,1707945038584,-404.12836237,0.00029096,2]
[314040299,1707945038595,-25551.01673367,0.0002913,2]
[314040300,1707945038604,-155.0,0.00029137,2]
[314040301,1707945038613,-438.86,0.00029174,2]
[314040302,1707945038623,-24246.48671313,0.00029177,2]
[314040303,1707945038633,-2487.04,0.00029219,2]
[314040304,1707945038642,-177.31122357,0.00029241,2]
[314040305,1707945038652,-587.0,0.00029319,2]
[314040306,1707945038662,-152.55018997,0.00029331,2]
[314040307,1707945038672,-150.0,0.00029466,2]
[314040308,1707945038681,-404.12836237,0.00029886,2]
[314040309,1707945038692,-155492.48676203,0.000299,3]
[314040310,1707945038702,-150.0,0.000299,2]
[314040311,1707945038712,-293.22664701,0.00029901,2]
[314040312,1707945038721,-24246.48671313,0.0002995,2]
[314040313,1707945038731,-166.38,0.00029986,2]
[314040314,1707945038741,-622.34433217,0.0003,2]
[314040315,1707945038751,-150.1,0.0003,2]
[314040316,1707945038763,-153.0,0.0003,2]
[314040317,1707945038773,-150.0,0.00030014,2]
[314040318,1707945038784,-1609.3272,0.00030037,2]
[314040319,1707945038795,-158.3,0.00030137,2]
[314040320,1707945038806,-15626.9,0.00030137,2]
[314040321,1707945038817,-2487.04,0.00030217,2]
[314040322,1707945038827,-4191.99,0.00030313,2]
[314040323,1707945038837,-1000.0,0.00030336,2]
[314040324,1707945038847,-152.55018997,0.00030343,2]
[314040325,1707945038855,-257.0,0.00030381,2]
[314040326,1707945038865,-438.86,0.00030443,2]
[314040327,1707945038874,-155.0,0.00030507,2]
[314040328,1707945038883,-150.0,0.00030562,2]
[314040329,1707945038893,-24246.48671313,0.00030722,2]
[314040330,1707945038903,-3192.57118008,0.00030941,5]
[314040331,1707945038912,-150.0,0.0003111,2]
[314040332,1707945038921,-150.0,0.000312,2]
[314040333,1707945038930,-2487.04,0.00031216,2]
[314040334,1707945038942,-158.3,0.00031233,2]
[314040335,1707945038951,-167.96385491,0.00031308,2]
[314040336,1707945038961,-152.55018997,0.00031355,2]
[314040337,1707945038970,-24246.48671313,0.00031494,3]
[314040338,1707945039177,-293.22664701,0.00031498,2]
[314040339,1707945039187,-220.99844038,0.000315,2]
[314040340,1707945039196,-180.0,0.00031644,2]
[314040341,1707945039206,-150.0,0.00031658,2]
[314040342,1707945039215,-4955.79499365,0.00031704,7]
[314040343,1707945039226,-3257.26213627,0.00031704,7]
[314040344,1707945039235,-3771.29498056,0.00031704,7]
[314040345,1707945039246,-3671.24658008,0.00031704,7]
[314040346,1707945039255,-1835.62329004,0.00031704,7]
[314040347,1707945039265,-823.0,0.00031763,3]
[314040348,1707945039274,-216922.867049,0.000318,3]
[314040349,1707945039284,-155.0,0.00031877,2]
[314040350,1707945039293,-4191.99,0.00031957,2]
[314040351,1707945039302,-257.0,0.00032025,2]
[314040352,1707945039311,-152.62,0.00032057,2]
[314040353,1707945039321,-150.0,0.00032115,2]
[314040354,1707945039330,-9853.51987895,0.0003212,2]
[314040355,1707945039340,-192.0,0.00032164,2]
[314040356,1707945039350,-175.61868452,0.00032206,2]
[314040357,1707945039359,-2487.04,0.00032214,2]
[314040358,1707945039369,-24246.48671313,0.00032266,4]
[314040359,1707945039378,-1000.0,0.00032269,2]
[314040360,1707945039387,-158.3,0.00032329,2]
[314040361,1707945039399,-10075.79672776,0.00032337,2]
[314040362,1707945039409,-152.55018997,0.00032367,2]
[314040363,1707945039420,-39225.42780599,0.00032402,2]
[314040364,1707945039429,-146993.821632,0.00032405,2]
[314040365,1707945039439,-21861.7926287,0.00032429,2]
[314040366,1707945039449,-217527.2127205,0.00032429,2]
[314040367,1707945039459,-2000.0,0.00032437,2]
[314040368,1707945039468,-200.0,0.00032437,2]
[314040369,1707945039478,-2000.0,0.00032437,2]
[314040370,1707945039487,-200.0,0.00032437,2]
[314040371,1707945039496,-1517.90732,0.00032437,2]
[314040372,1707945039506,-2000.0,0.00032437,2]
[314040373,1707945039515,-200.0,0.00032437,2]
[314040374,1707945039525,-8146.7451948,0.00032451,2]
[314040375,1707945039535,-166.38,0.00032473,2]
[314040376,1707945039544,-500.0,0.000326,2]
[314040377,1707945039553,-516.82,0.000326,7]
[314040378,1707945039562,-153.78,0.000326,2]
[314040379,1707945039571,-153.78,0.000326,2]
[314040380,1707945039581,-808.0,0.00032684,2]
[314040381,1707945039590,-1037.03192088,0.00032686,2]
[314040382,1707945039599,-611.16,0.00032716,2]
[314040383,1707945039608,-2000.0,0.00032761,2]
[314040384,1707945039617,-200.0,0.00032761,2]
[314040385,1707945039626,-2000.0,0.00032761,2]
[314040386,1707945039635,-200.0,0.00032761,2]
[314040387,1707945039644,-2000.0,0.00032761,2]
[314040388,1707945039654,-200.0,0.00032761,2]
[314040389,1707945039663,-150.28,0.00032877,2]
[314040390,1707945039673,-37296.12,0.00032877,2]
[314040391,1707945039682,-55588.84,0.00032877,2]
[314040392,1707945039691,-200.0,0.00032877,2]
[314040393,1707945039700,-1500.0,0.000329,2]
[314040394,1707945039709,-8000.0,0.000329,2]
[314040395,1707945039719,-3192.57118008,0.00032927,6]
[314040396,1707945039727,-100000.0,0.00033,3]
[314040397,1707945039736,-545.08276275,0.00033,2]
[314040398,1707945039745,-2512.50741562,0.00033,2]
[314040399,1707945039754,-153.0,0.00033,2]
[314040400,1707945039765,-24246.48671313,0.00033039,5]
[314040401,1707945039776,-151.021504,0.00033048,4]
[314040402,1707945039785,-153.24767526,0.00033079,4]
[314040403,1707945039796,-2000.0,0.00033089,2]
[314040404,1707945039805,-200.0,0.00033089,2]
[314040405,1707945039816,-293.22664701,0.00033094,2]
[314040406,1707945039827,-151.021504,0.00033148,4]
[314040407,1707945039838,-507.76294868,0.00033148,2]
[314040408,1707945039849,-204.0,0.00033169,2]
[314040409,1707945039859,-1517.90732,0.000332,2]
[314040410,1707945039870,-2487.04,0.00033212,2]
[314040411,1707945039880,-155.0,0.00033247,2]
[314040412,1707945039889,-151.021504,0.00033248,4]
[314040413,1707945039900,-151.021518,0.00033348,4]
[314040414,1707945039909,-580.39408868,0.00033362,2]
[314040415,1707945039918,-152.55018997,0.00033379,2]
[314040416,1707945039927,-1000.0,0.000334,2]
[314040417,1707945039941,-2000.0,0.0003342,2]
[314040418,1707945039950,-200.0,0.0003342,2]
[314040419,1707945039959,-158.3,0.00033425,2]
[314040420,1707945039969,-151.021404,0.00033448,4]
[314040421,1707945039979,-55555.0,0.00033459,3]
[314040422,1707945039987,-537.45080432,0.00033462,2]
[314040423,1707945039997,-405.27,0.000335,2]
[314040424,1707945040006,-405.27,0.000335,2]
[314040425,1707945040018,-405.27,0.000335,2]
[314040426,1707945040031,-405.27,0.000335,2]
[314040427,1707945040040,-405.27,0.000335,2]
[314040428,1707945040049,-405.27,0.000335,2]
[314040429,1707945040059,-405.27,0.000335,2]
[314040430,1707945040070,-405.27,0.000335,2]
[314040431,1707945040080,-405.27,0.000335,2]
[314040432,1707945040089,-405.27,0.000335,2]
[314040433,1707945040099,-405.27,0.000335,2]
[314040434,1707945040109,-405.27,0.000335,2]
[314040435,1707945040118,-405.27,0.000335,2]
[314040436,1707945040127,-405.27,0.000335,2]
[314040437,1707945040137,-405.27,0.000335,2]
[314040438,1707945040147,-405.27,0.000335,2]
[314040439,1707945040158,-405.27,0.000335,2]
[314040440,1707945040167,-405.27,0.000335,2]
[314040441,1707945040178,-405.27,0.000335,2]
[314040442,1707945040187,-405.27,0.000335,2]
[314040443,1707945040197,-181.10463162,0.00033551,2]
[314040444,1707945040206,-313803.42244792,0.00033559,2]
[314040445,1707945040216,-63695.0,0.00033562,4]
[314040446,1707945040226,-210.125,0.00033573,2]
[314040447,1707945040235,-205.907,0.00033573,2]
[314040448,1707945040245,-181.744,0.00033573,2]
[314040449,1707945040254,-165.629,0.00033573,2]
[314040450,1707945040263,-155.0,0.00033573,2]
[314040451,1707945040273,-2833.0,0.00033573,2]
[314040452,1707945040283,-1368.0,0.00033573,2]
[314040453,1707945040293,-397.0,0.00033573,2]
[314040454,1707945040303,-841.0,0.00033573,2]
[314040455,1707945040313,-952.0,0.00033573,2]
[314040456,1707945040324,-453.0,0.00033573,2]
[314040457,1707945040333,-1864.0,0.00033573,2]
[314040458,1707945040343,-1948.0,0.00033573,2]
[314040459,1707945040352,-599.0,0.00033573,2]
[314040460,1707945040361,-1018.812,0.00033573,2]
[314040461,1707945040370,-442.661,0.00033573,2]
[314040462,1707945040379,-243.647,0.00033573,2]
[314040463,1707945040389,-964.147,0.00033573,2]
[314040464,1707945040398,-416.335,0.00033573,2]
[314040465,1707945040407,-431.489,0.00033573,2]
[314040466,1707945040416,-1138.0,0.00033573,2]
[314040467,1707945040426,-150.0,0.00033573,2]
[314040468,1707945040435,-153.746,0.00033573,2]
[314040469,1707945040444,-150.0,0.000336,2]
[314040470,1707945040455,-4191.99,0.00033601,2]
[314040471,1707945040466,-7413.0,0.00033609,2]
[314040472,1707945040475,-2925.0,0.00033609,2]
[314040473,1707945040484,-2288.0,0.00033609,2]
[314040474,1707945040494,-8159.0,0.00033609,2]
[314040475,1707945040504,-38071.381,0.00033609,2]
[314040476,1707945040514,-19835.0,0.00033609,2]
[314040477,1707945040523,-4208.0,0.00033609,2]
[314040478,1707945040532,-1073.799,0.00033609,2]
[314040479,1707945040543,-164.3960399,0.00033639,4]
[314040480,1707945040553,-1375.76188554,0.00033639,4]
[314040481,1707945040563,-349.90970528,0.00033639,4]
[314040482,1707945040573,-1178.86778787,0.00033639,4]
[314040483,1707945040582,-552.32878439,0.00033639,4]
[314040484,1707945040591,-4193.60382342,0.00033639,4]
[314040485,1707945040601,-257.0,0.00033668,2]
[314040486,1707945040611,-838.1,0.000337,2]
[314040487,1707945040621,-200.0,0.00033754,2]
[314040488,1707945040632,-24246.48671313,0.00033811,6]
[314040489,1707945040643,-4159.32600501,0.000339,17]
[314040490,1707945040655,-153.5469762,0.000339,2]
[314040491,1707945040664,-153.54697604,0.000339,2]
[314040492,1707945040673,-153.54697604,0.000339,2]
[314040493,1707945040683,-153.54697604,0.000339,2]
[314040494,1707945040692,-153.54697604,0.000339,2]
[314040495,1707945040701,-153.54697604,0.000339,2]
[314040496,1707945040711,-153.54697604,0.000339,2]
[314040497,1707945040721,-153.54697604,0.000339,2]
[314040498,1707945040731,-153.54697604,0.000339,2]
[314040499,1707945040741,-2892.06173857,0.0003399,2]
[314040500,1707945040752,-100000.0,0.00034,4]
[314040501,1707945040761,-3997.01497962,0.00034,2]
[314040502,1707945040772,-4000.0,0.000342,2]
[314040503,1707945040782,-1000.0,0.00034202,2]
[314040504,1707945040793,-150.0,0.00034209,2]
[314040505,1707945040803,-150.0,0.00034209,2]
[314040506,1707945040814,-2487.04,0.0003421,2]
[314040507,1707945040824,-1895.75258,0.00034247,15]
[314040508,1707945040835,-166.38,0.0003427,2]
[314040509,1707945040845,-1517.90732,0.0003445,2]
[314040510,1707945040854,-150.1,0.00034479,2]
[314040511,1707945040865,-155.0,0.00034512,2]
[314040512,1707945040875,-375.587417,0.0003452,2]
[314040513,1707945040885,-383.55179,0.0003452,2]
[314040514,1707945040895,-751.174834,0.0003452,2]
[314040515,1707945040904,-2569.122703,0.0003452,2]
[314040516,1707945040916,-537.815941,0.0003452,2]
[314040517,1707945040925,-4349.562066,0.0003452,2]
[314040518,1707945040937,-381.401366,0.0003452,2]
[314040519,1707945040951,-158.3,0.00034521,2]
[314040520,1707945040962,-8096.0,0.00034521,2]
[314040521,1707945040972,-150.0,0.00034548,10]
[314040522,1707945040982,-153.54697604,0.00034563,2]
[314040523,1707945040992,-24246.48671313,0.00034583,7]
[314040524,1707945041002,-10075.79672776,0.00034612,2]
[314040525,1707945041012,-155.0,0.00034617,2]
[314040526,1707945041022,-293.22664701,0.0003469,2]
[314040527,1707945041031,-419.04,0.000347,2]
[314040528,1707945041041,-150.28,0.00034703,2]
[314040529,1707945041050,-18721.38671529,0.0003479,2]
[314040530,1707945041061,-18721.38671526,0.0003479,2]
[314040531,1707945041072,-18721.38671526,0.0003479,2]
[314040532,1707945041081,-18721.38671526,0.0003479,2]
[314040533,1707945041091,-18721.38671526,0.0003479,2]
[314040534,1707945041101,-18721.38671526,0.0003479,2]
[314040535,1707945041110,-18721.38671526,0.0003479,2]
[314040536,1707945041120,-563.381126,0.00034794,2]
[314040537,1707945041129,-575.327685,0.00034794,2]
[314040538,1707945041138,-1126.762252,0.00034794,2]
[314040539,1707945041149,-3853.684055,0.00034794,2]
[314040540,1707945041160,-806.723912,0.00034794,2]
[314040541,1707945041171,-6524.343099,0.00034794,2]
[314040542,1707945041180,-572.102049,0.00034794,2]
[314040543,1707945041190,-155.0,0.00034795,2]
[314040544,1707945041199,-8639.2217462,0.00034799,2]
[314040546,1707945041209,-8639.22174616,0.00034799,2]
[314040548,1707945041218,-8639.22174616,0.00034799,2]
[314040550,1707945041228,-8639.22174616,0.00034799,2]
[314040552,1707945041238,-8639.22174616,0.00034799,2]
[314040554,1707945041247,-8639.22174616,0.00034799,2]
[314040556,1707945041256,-8639.22174616,0.00034799,2]
[314040557,1707945041265,-153.78,0.000349,2]
[314040559,1707945041275,-153.78,0.000349,2]
[314040561,1707945041284,-153.78,0.000349,2]
[314040563,1707945041293,-153.78,0.000349,2]
[314040565,1707945041303,-151.0,0.00034901,30]
[314040567,1707945041312,-3192.57118008,0.00034914,7]
[314040569,1707945041322,-500.0,0.0003493,2]
[314040571,1707945041331,-500.0,0.0003493,2]
[314040573,1707945041341,-500.0,0.0003493,2]
[314040575,1707945041350,-500.0,0.0003493,2]
[314040577,1707945041359,-500.0,0.0003493,2]
[314040579,1707945041368,-500.0,0.0003493,2]
[314040581,1707945041377,-500.0,0.0003493,2]
[314040583,1707945041386,-500.0,0.0003493,2]
[314040585,1707945041395,-500.0,0.0003493,2]
[314040586,1707945041405,-500.0,0.0003493,2]
[314040587,1707945041414,-500.0,0.0003493,2]
[314040588,1707945041424,-500.0,0.0003493,2]
[314040589,1707945041433,-500.0,0.0003493,2]
[314040590,1707945041442,-500.0,0.0003493,2]
[314040591,1707945041452,-500.0,0.0003493,2]
[314040592,1707945041461,-500.0,0.0003493,2]
[314040593,1707945041470,-500.0,0.0003493,2]
[314040594,1707945041479,-500.0,0.0003493,2]
[314040595,1707945041488,-500.0,0.0003493,2]
[314040596,1707945041497,-500.0,0.0003493,2]
[314040597,1707945041506,-500.0,0.0003493,2]
[314040598,1707945041515,-500.0,0.0003493,2]
[314040599,1707945041525,-500.0,0.0003493,2]
[314040600,1707945041534,-500.0,0.0003493,2]
[314040601,1707945041543,-500.0,0.0003493,2]
[314040602,1707945041553,-500.0,0.0003493,2]
[314040603,1707945041562,-500.0,0.0003493,2]
[314040604,1707945041571,-500.0,0.0003493,2]
[314040605,1707945041580,-500.0,0.0003493,2]
[314040606,1707945041589,-500.0,0.0003493,2]
[314040607,1707945041599,-500.0,0.0003493,2]
[314040608,1707945041610,-500.0,0.0003493,2]
[314040609,1707945041619,-500.0,0.0003493,2]
[314040610,1707945041630,-500.0,0.0003493,2]
[314040611,1707945041640,-500.0,0.0003493,2]
[314040612,1707945041651,-500.0,0.0003493,2]
[314040613,1707945041661,-500.0,0.0003493,2]
[314040614,1707945041671,-500.0,0.0003493,2]
[314040615,1707945041681,-500.0,0.0003493,2]
[314040616,1707945041690,-500.0,0.00034931,2]
[314040617,1707945041701,-500.0,0.00034931,2]
[314040618,1707945041711,-500.0,0.00034931,2]
[314040619,1707945041720,-500.0,0.00034931,2]
[314040620,1707945041730,-500.0,0.00034931,2]
[314040621,1707945041739,-500.0,0.00034931,2]
[314040622,1707945041748,-500.0,0.00034931,2]
[314040623,1707945041759,-500.0,0.00034931,2]
[314040624,1707945041770,-500.0,0.00034931,2]
[314040625,1707945041779,-500.0,0.00034931,2]
[314040626,1707945041789,-500.0,0.00034931,2]
[314040627,1707945041798,-500.0,0.00034931,2]
[314040628,1707945041809,-500.0,0.00034931,2]
[314040629,1707945041818,-500.0,0.00034931,2]
[314040630,1707945041827,-500.0,0.00034931,2]
[314040631,1707945041837,-500.0,0.00034931,2]
[314040632,1707945041846,-500.0,0.00034931,2]
[314040633,1707945041858,-500.0,0.00034931,2]
[314040634,1707945041870,-500.0,0.00034931,2]
[314040635,1707945041879,-500.0,0.00034931,2]
[314040636,1707945041890,-500.0,0.00034931,2]
[314040637,1707945041899,-500.0,0.00034931,2]
[314040638,1707945041911,-500.0,0.00034931,2]
[314040639,1707945041921,-500.0,0.00034931,2]
[314040640,1707945041932,-500.0,0.00034931,2]
[314040641,1707945041947,-500.0,0.00034931,2]
[314040642,1707945041957,-500.0,0.00034931,2]
[314040643,1707945041966,-500.0,0.00034931,2]
[314040644,1707945042110,-500.0,0.00034931,2]
[314040645,1707945042138,-500.0,0.00034931,2]
[314040646,1707945042148,-500.0,0.00034931,2]
[314040647,1707945042157,-500.0,0.00034931,2]
[314040648,1707945042166,-500.0,0.00034931,2]
[314040649,1707945042176,-500.0,0.00034931,2]
[314040650,1707945042185,-500.0,0.00034931,2]
[314040651,1707945042225,-500.0,0.00034931,2]
[314040652,1707945042235,-500.0,0.00034931,2]
[314040653,1707945042245,-500.0,0.00034931,2]
[314040654,1707945042254,-500.0,0.00034931,2]
[314040655,1707945042263,-500.0,0.00034931,2]
[314040656,1707945042272,-500.0,0.00034931,2]
[314040657,1707945042282,-500.0,0.00034931,2]
[314040658,1707945042291,-500.0,0.00034931,2]
[314040659,1707945042301,-500.0,0.00034931,2]
[314040660,1707945042310,-500.0,0.00034931,2]
[314040661,1707945042320,-500.0,0.00034931,2]
[314040662,1707945042330,-500.0,0.00034931,2]
[314040663,1707945042341,-500.0,0.00034931,2]
[314040664,1707945042350,-500.0,0.00034931,2]
[314040665,1707945042359,-500.0,0.00034931,2]
[314040666,1707945042369,-500.0,0.00034931,2]
[314040667,1707945042379,-500.0,0.00034931,2]
[314040668,1707945042388,-500.0,0.00034931,2]
[314040669,1707945042398,-500.0,0.00034931,2]
[314040670,1707945042407,-500.0,0.00034931,2]
[314040671,1707945042418,-500.0,0.00034931,2]
[314040672,1707945042428,-500.0,0.00034931,2]
[314040673,1707945042437,-500.0,0.00034931,2]
[314040675,1707945042447,-500.0,0.00034931,2]
[314040676,1707945042456,-500.0,0.00034931,2]
[314040678,1707945042465,-751.174834,0.00034931,2]
[314040679,1707945042474,-767.10358,0.00034931,2]
[314040680,1707945042484,-1502.349669,0.00034931,2]
[314040681,1707945042494,-5138.245407,0.00034931,2]
[314040682,1707945042503,-1075.631883,0.00034931,2]
[314040683,1707945042512,-8699.124133,0.00034931,2]
[314040684,1707945042521,-762.802732,0.00034931,2]
[314040685,1707945042531,-7638.4675067,0.00034976,2]
[314040686,1707945042540,-20431.1580893,0.00034976,2]
[314040687,1707945042549,-206442.0563305,0.00034976,2]
[314040689,1707945042559,-611.16,0.0003498,2]
[314040691,1707945042568,-150.0,0.00034999,2]
[314040692,1707945042577,-150.0,0.00034999,2]
[314040693,1707945042586,-100000.0,0.00035,5]
[314040694,1707945042596,-2109.0,0.00035,10]
[314040695,1707945042605,-2205.85243915,0.00035,2]
[314040696,1707945042614,-1620.28700576,0.00035,2]
[314040698,1707945042623,-155.0,0.00035,2]
[314040700,1707945042632,-87987.6570546,0.00035,2]
[314040702,1707945042641,-2515.06829709,0.00035,2]
[314040704,1707945042650,-2515.06829709,0.00035,2]
[314040706,1707945042659,-2515.06829709,0.00035,2]
[314040707,1707945042669,-2515.06829709,0.00035,2]
[314040708,1707945042679,-2515.06829709,0.00035,2]
[314040709,1707945042689,-2515.06829709,0.00035,2]
[314040710,1707945042699,-2515.06829709,0.00035,2]
[314040711,1707945042709,-2515.06829709,0.00035,2]
[314040712,1707945042720,-2515.06829709,0.00035,2]
[314040713,1707945042730,-2515.06829709,0.00035,2]
[314040714,1707945042739,-2515.06829709,0.00035,2]
[314040715,1707945042748,-2515.06829709,0.00035,2]
[314040716,1707945042758,-2515.06829709,0.00035,2]
[314040717,1707945042767,-2515.06829709,0.00035,2]
[314040718,1707945042776,-2515.06829709,0.00035,2]
[314040719,1707945042784,-2515.06829709,0.00035,2]
[314040720,1707945042793,-2515.06829709,0.00035,2]
[314040721,1707945042802,-2515.06829709,0.00035,2]
[314040722,1707945042812,-2515.06829709,0.00035,2]
[314040723,1707945042821,-2515.06829709,0.00035,2]
[314040724,1707945042830,-2515.06829709,0.00035,2]
[314040725,1707945042839,-2515.06829709,0.00035,2]
[314040726,1707945042849,-2515.06829709,0.00035,2]
[314040727,1707945042857,-2515.06829709,0.00035,2]
[314040728,1707945042867,-2515.06829709,0.00035,2]
[314040729,1707945042876,-2515.06829709,0.00035,2]
[314040730,1707945042885,-2515.06829709,0.00035,2]
[314040731,1707945042894,-2515.06829709,0.00035,2]
[314040732,1707945042904,-2515.06829709,0.00035,2]
[314040733,1707945042913,-2515.06829709,0.00035,2]
[314040734,1707945042922,-2515.06829709,0.00035,2]
[314040735,1707945042931,-2515.06829709,0.00035,2]
[314040736,1707945042941,-2515.06829709,0.00035,2]
[314040737,1707945042953,-2515.06829709,0.00035,2]
[314040738,1707945042963,-2515.06829709,0.00035,2]
[314040739,1707945042972,-2515.06829709,0.00035,2]
[314040740,1707945042981,-2515.06829709,0.00035,2]
[314040741,1707945042992,-2515.06829709,0.00035,2]
[314040742,1707945043002,-2515.06829709,0.00035,2]
[314040743,1707945043011,-2515.06829709,0.00035,2]
[314040744,1707945043024,-2515.06829709,0.00035,2]
[314040745,1707945043035,-2515.06829709,0.00035,2]
[314040746,1707945043046,-2515.06829709,0.00035,2]
[314040747,1707945043055,-2515.06829709,0.00035,2]
[314040748,1707945043065,-2515.06829709,0.00035,2]
[314040749,1707945043076,-2515.06829709,0.00035,2]
[314040750,1707945043087,-2515.06829709,0.00035,2]
[314040751,1707945043097,-2515.06829709,0.00035,2]
[314040752,1707945043107,-2515.06829709,0.00035,2]
[314040753,1707945043116,-2515.06829709,0.00035,2]
[314040754,1707945043126,-2515.06829709,0.00035,2]
[314040755,1707945043135,-2515.06829709,0.00035,2]
[314040756,1707945043144,-2515.06829709,0.00035,2]
[314040757,1707945043154,-2515.06829709,0.00035,2]
[314040758,1707945043163,-2515.06829709,0.00035,2]
[314040759,1707945043172,-2515.06829709,0.00035,2]
[314040760,1707945043182,-2515.06829709,0.00035,2]
[314040761,1707945043191,-2515.06829709,0.00035,2]
[314040762,1707945043200,-2515.06829709,0.00035,2]
[314040763,1707945043209,-2515.06829709,0.00035,2]
[314040764,1707945043219,-2515.06829709,0.00035,2]
[314040765,1707945043228,-2515.06829709,0.00035,2]
[314040766,1707945043238,-2515.06829709,0.00035,2]
[314040767,1707945043247,-2515.06829709,0.00035,2]
[314040768,1707945043257,-2515.06829709,0.00035,2]
[314040769,1707945043266,-2515.06829709,0.00035,2]
[314040770,1707945043275,-2515.06829709,0.00035,2]
[314040771,1707945043284,-2515.06829709,0.00035,2]
[314040772,1707945043294,-2515.06829709,0.00035,2]
[314040773,1707945043305,-2515.06829709,0.00035,2]
[314040774,1707945043314,-2515.06829709,0.00035,2]
[314040775,1707945043324,-2515.06829709,0.00035,2]
[314040776,1707945043334,-2515.06829709,0.00035,2]
[314040777,1707945043344,-2515.06829709,0.00035,2]
[314040778,1707945043353,-2515.06829709,0.00035,2]
[314040779,1707945043363,-2515.06829709,0.00035,2]
[314040780,1707945043373,-2515.06829709,0.00035,2]
[314040781,1707945043382,-2515.06829709,0.00035,2]
[314040782,1707945043392,-2515.06829709,0.00035,2]
[314040783,1707945043401,-2515.06829709,0.00035,2]
[314040784,1707945043411,-2515.06829709,0.00035,2]
[314040785,1707945043420,-2515.06829709,0.00035,2]
[314040786,1707945043430,-2515.06829709,0.00035,2]
[314040787,1707945043441,-2515.06829709,0.00035,2]
[314040788,1707945043452,-2515.06829709,0.00035,2]
[314040789,1707945043462,-2515.06829709,0.00035,2]
[314040790,1707945043472,-2515.06829709,0.00035,2]
[314040791,1707945043481,-2515.06829709,0.00035,2]
[314040792,1707945043490,-2515.06829709,0.00035,2]
[314040793,1707945043499,-2515.06829709,0.00035,2]
[314040794,1707945043507,-2515.06829709,0.00035,2]
[314040795,1707945043516,-938.968543,0.00035068,2]
[314040796,1707945043525,-958.879476,0.00035068,2]
[314040797,1707945043534,-1877.937086,0.00035068,2]
[314040798,1707945043543,-6422.806758,0.00035068,2]
[314040799,1707945043552,-1344.539854,0.00035068,2]
[314040800,1707945043561,-10873.905166,0.00035068,2]
[314040801,1707945043570,-953.503415,0.00035068,2]
[314040802,1707945043579,-7913.37194648,0.0003509,2]
[314040803,1707945043592,-1500.0,0.000351,2]
[314040804,1707945043602,-580.39408867,0.00035131,2]
[314040805,1707945043611,-153.54697604,0.0003523,2]
[314040806,1707945043620,-257.0,0.00035312,2]
[314040807,1707945043630,-1314.55596,0.00035342,2]
[314040808,1707945043639,-1342.431266,0.00035342,2]
[314040809,1707945043649,-2629.111921,0.00035342,2]
[314040810,1707945043659,-8991.929462,0.00035342,2]
[314040811,1707945043669,-1882.355796,0.00035342,2]
[314040812,1707945043680,-15223.467233,0.00035342,2]
[314040813,1707945043690,-1334.904782,0.00035342,2]
[314040814,1707945043699,-24246.48671313,0.00035355,8]
[314040815,1707945043709,-192.0,0.00035381,2]
[314040816,1707945043718,-222.021514,0.00035448,14]
[314040817,1707945043729,-897.0,0.000355,2]
[314040818,1707945043739,-871.0,0.000355,2]
[314040819,1707945043749,-1000.0,0.000355,2]
[314040820,1707945043761,-405.27,0.000356,3]
[314040821,1707945043771,-405.27,0.000356,3]
[314040822,1707945043780,-405.27,0.000356,3]
[314040823,1707945043790,-405.27,0.000356,3]